[Event "Early-Titled-Tuesday-Blitz-March-26-2024"]
[Site "Chess.com"]
[Date "2024.03.26"]
[Round "3"]
[White "vlad10898"]
[Black "Let_it_be_1"]
[Result "1-0"]
[WhiteElo "2888"]
[BlackElo "2668"]
[TimeControl "180+1"]
[EndTime "8:28:38 PDT"]
[Termination "vlad10898 won by resignation"]

1. Nf3 {[%clk 0:02:57.8]} 1... d5 {[%clk 0:03:00.1]} 2. e3 {[%clk 0:02:56.8]}
2... e6 {[%clk 0:03:00]} 3. c4 {[%clk 0:02:56.3]} 3... Nf6 {[%clk 0:03:00.3]} 4.
Nc3 {[%clk 0:02:56]} 4... Be7 {[%clk 0:03:00.6]} 5. b3 {[%clk 0:02:55.2]} 5...
O-O {[%clk 0:03:00.3]} 6. Bb2 {[%clk 0:02:55.2]} 6... c5 {[%clk 0:03:00.5]} 7.
cxd5 {[%clk 0:02:54]} 7... exd5 {[%clk 0:03:00.8]} 8. d4 {[%clk 0:02:54]} 8...
Nc6 {[%clk 0:03:00.9]} 9. Be2 {[%clk 0:02:52.2]} 9... cxd4 {[%clk 0:03:01.2]}
10. Nxd4 {[%clk 0:02:51.8]} 10... Bc5 {[%clk 0:03:01.6]} 11. Nxc6 {[%clk
0:02:38.8]} 11... bxc6 {[%clk 0:03:01.8]} 12. O-O {[%clk 0:02:38.3]} 12... Bd6
{[%clk 0:03:01.6]} 13. Rc1 {[%clk 0:02:37.5]} 13... Bd7 {[%clk 0:03:00.7]} 14.
Na4 {[%clk 0:02:37.2]} 14... Ne4 {[%clk 0:02:57.7]} 15. Bf3 {[%clk 0:02:28.4]}
15... Re8 {[%clk 0:02:57.3]} 16. g3 {[%clk 0:02:05.7]} 16... Bh3 {[%clk
0:02:40.2]} 17. Re1 {[%clk 0:02:00.5]} 17... Rc8 {[%clk 0:02:37.2]} 18. Bg4
{[%clk 0:01:42]} 18... Bxg4 {[%clk 0:02:17.4]} 19. Qxg4 {[%clk 0:01:42.9]} 19...
Be5 {[%clk 0:01:53.9]} 20. Bxe5 {[%clk 0:01:38.1]} 20... Rxe5 {[%clk 0:01:54.2]}
21. Nc5 {[%clk 0:01:35.5]} 21... h5 {[%clk 0:01:32.1]} 22. Qe2 {[%clk
0:01:10.6]} 22... h4 {[%clk 0:01:20.1]} 23. Nxe4 {[%clk 0:01:07.6]} 23... Rxe4
{[%clk 0:01:20.2]} 24. Qa6 {[%clk 0:00:53]} 24... Qd7 {[%clk 0:01:02.9]} 25.
Red1 {[%clk 0:00:42.9]} 25... Rc7 {[%clk 0:00:39.6]} 26. Qa5 {[%clk 0:00:33.3]}
26... h3 {[%clk 0:00:22.9]} 27. Rxd5 {[%clk 0:00:32.2]} 27... cxd5 {[%clk
0:00:14.3]} 28. Qxc7 {[%clk 0:00:31.4]} 28... Re7 {[%clk 0:00:08.2]} 29. Qxd7
{[%clk 0:00:23.1]} 29... Rxd7 {[%clk 0:00:08.6]} 30. Kf1 {[%clk 0:00:23.7]}
30... f6 {[%clk 0:00:05.3]} 31. Ke2 {[%clk 0:00:23.2]} 31... Kf7 {[%clk
0:00:04.7]} 32. Kd3 {[%clk 0:00:22]} 32... Ke6 {[%clk 0:00:04.3]} 33. Rc8 {[%clk
0:00:22.6]} 33... g5 {[%clk 0:00:03.5]} 34. g4 {[%clk 0:00:20.3]} 34... f5
{[%clk 0:00:01.2]} 35. Re8+ {[%clk 0:00:18.1]} 35... Kf7 {[%clk 0:00:01.5]} 36.
Re5 {[%clk 0:00:18.3]} 36... fxg4 {[%clk 0:00:01.4]} 37. Rxg5 {[%clk 0:00:18.6]}
37... Ke6 {[%clk 0:00:01.7]} 38. Rxg4 {[%clk 0:00:18.9]} 38... Rf7 {[%clk
0:00:02.6]} 39. f4 {[%clk 0:00:18.8]} 39... Rc7 {[%clk 0:00:01.8]} 40. Rg3
{[%clk 0:00:18.7]} 40... Rc1 {[%clk 0:00:01.5]} 41. Rxh3 {[%clk 0:00:19.1]}
41... Rd1+ {[%clk 0:00:01.9]} 42. Kc3 {[%clk 0:00:18.2]} 42... Ra1 {[%clk
0:00:02.8]} 43. a4 {[%clk 0:00:17.4]} 43... Re1 {[%clk 0:00:03.1]} 44. Kb4
{[%clk 0:00:15.8]} 44... Kf5 {[%clk 0:00:03.5]} 45. Kc5 {[%clk 0:00:14.2]} 45...
Ke4 {[%clk 0:00:04.4]} 46. b4 {[%clk 0:00:14.6]} 46... Rc1+ {[%clk 0:00:04.8]}
47. Kb5 {[%clk 0:00:13.5]} 1-0

[Event "Early-Titled-Tuesday-Blitz-March-26-2024"]
[Site "Chess.com"]
[Date "2024.03.26"]
[Round "3"]
[White "KorolDimitriy75"]
[Black "1mbl4"]
[Result "1-0"]
[WhiteElo "2384"]
[BlackElo "2567"]
[TimeControl "180+1"]
[EndTime "8:28:41 PDT"]
[Termination "KorolDimitriy75 won by resignation"]

1. d4 {[%clk 0:03:00.9]} 1... Nf6 {[%clk 0:02:59.3]} 2. c4 {[%clk 0:03:01.2]}
2... g6 {[%clk 0:02:59.2]} 3. Nc3 {[%clk 0:03:01.8]} 3... Bg7 {[%clk 0:02:59.6]}
4. e4 {[%clk 0:03:02.2]} 4... d6 {[%clk 0:03:00]} 5. Nf3 {[%clk 0:03:03.1]} 5...
O-O {[%clk 0:03:00.2]} 6. Be2 {[%clk 0:03:04]} 6... e5 {[%clk 0:03:00.2]} 7.
dxe5 {[%clk 0:03:04.9]} 7... dxe5 {[%clk 0:02:59.9]} 8. Qxd8 {[%clk 0:03:05.8]}
8... Rxd8 {[%clk 0:03:00]} 9. Bg5 {[%clk 0:03:06.7]} 9... Re8 {[%clk 0:02:58]}
10. O-O-O {[%clk 0:03:05.9]} 10... c6 {[%clk 0:02:55.7]} 11. Nxe5 {[%clk
0:03:06]} 11... Na6 {[%clk 0:02:34.3]} 12. Rd6 {[%clk 0:03:05.3]} 12... Nxe4
{[%clk 0:02:28.3]} 13. Nxe4 {[%clk 0:03:06.2]} 13... Bxe5 {[%clk 0:02:27.7]} 14.
Nf6+ {[%clk 0:03:06.2]} 14... Bxf6 {[%clk 0:02:26.1]} 15. Bxf6 {[%clk
0:03:07.1]} 15... Bf5 {[%clk 0:02:17]} 16. Kd2 {[%clk 0:03:06]} 16... Nc5 {[%clk
0:02:14.1]} 17. f3 {[%clk 0:03:05.9]} 17... Re6 {[%clk 0:01:50.7]} 18. Rxe6
{[%clk 0:03:05.3]} 18... Bxe6 {[%clk 0:01:51.6]} 19. Rd1 {[%clk 0:02:57.4]}
19... Nd7 {[%clk 0:01:50.8]} 20. Bh4 {[%clk 0:02:55]} 20... f6 {[%clk
0:01:47.8]} 21. Kc3 {[%clk 0:02:52.8]} 21... Kf7 {[%clk 0:01:46.5]} 22. Bf2
{[%clk 0:02:43.1]} 22... Nb6 {[%clk 0:01:35.2]} 23. b3 {[%clk 0:02:41.7]} 23...
Re8 {[%clk 0:01:34.3]} 24. Rd2 {[%clk 0:02:31.7]} 24... h5 {[%clk 0:01:33.3]}
25. a4 {[%clk 0:02:27.5]} 25... Nc8 {[%clk 0:01:29.4]} 26. a5 {[%clk 0:02:25.6]}
26... a6 {[%clk 0:01:27.3]} 27. Kb4 {[%clk 0:02:13.6]} 27... g5 {[%clk
0:01:22.9]} 28. f4 {[%clk 0:01:48.7]} 28... Kg6 {[%clk 0:01:08.7]} 29. fxg5
{[%clk 0:01:41.3]} 29... fxg5 {[%clk 0:01:07.2]} 30. Bd3+ {[%clk 0:01:23.1]}
30... Bf5 {[%clk 0:01:06.6]} 31. Bxf5+ {[%clk 0:01:16.3]} 31... Kxf5 {[%clk
0:01:07.5]} 32. Rd7 {[%clk 0:01:06.5]} 32... Re2 {[%clk 0:01:06.4]} 33. Bc5
{[%clk 0:00:59.1]} 33... Rxg2 {[%clk 0:01:00.7]} 34. Rc7 {[%clk 0:00:53.8]}
34... Rxh2 {[%clk 0:00:58.7]} 35. Rxc8 {[%clk 0:00:53.8]} 35... g4 {[%clk
0:00:58.4]} 36. Rc7 {[%clk 0:00:52.4]} 36... h4 {[%clk 0:00:56.6]} 37. Rxb7
{[%clk 0:00:50.8]} 37... g3 {[%clk 0:00:55.5]} 38. Rb6 {[%clk 0:00:49.6]} 38...
Rd2 {[%clk 0:00:44.4]} 39. Rxc6 {[%clk 0:00:28.1]} 39... h3 {[%clk 0:00:43.8]}
40. Rxa6 {[%clk 0:00:17.1]} 40... h2 {[%clk 0:00:26.6]} 41. Rh6 {[%clk
0:00:16.8]} 41... Ra2 {[%clk 0:00:19.8]} 42. Kb5 {[%clk 0:00:15.9]} 42... Kg5
{[%clk 0:00:16.3]} 43. Rh8 {[%clk 0:00:15.5]} 43... Ra1 {[%clk 0:00:12.9]} 44.
a6 {[%clk 0:00:15]} 44... h1=Q {[%clk 0:00:13.3]} 45. Rxh1 {[%clk 0:00:14.4]}
45... Rxh1 {[%clk 0:00:14.2]} 46. a7 {[%clk 0:00:14.2]} 46... Ra1 {[%clk
0:00:14.4]} 47. Kb6 {[%clk 0:00:14]} 47... Kg4 {[%clk 0:00:14.7]} 48. Kb7 {[%clk
0:00:13.3]} 48... g2 {[%clk 0:00:15.4]} 49. a8=Q {[%clk 0:00:13.1]} 49... Rxa8
{[%clk 0:00:14]} 50. Kxa8 {[%clk 0:00:14]} 50... Kf3 {[%clk 0:00:14.5]} 51. b4
{[%clk 0:00:13.4]} 51... g1=Q {[%clk 0:00:15.4]} 52. Bxg1 {[%clk 0:00:13.1]} 1-0

[Event "Early-Titled-Tuesday-Blitz-March-26-2024"]
[Site "Chess.com"]
[Date "2024.03.26"]
[Round "3"]
[White "TigrVShlyape"]
[Black "Josetricks"]
[Result "1/2-1/2"]
[WhiteElo "2900"]
[BlackElo "2703"]
[TimeControl "180+1"]
[EndTime "8:28:43 PDT"]
[Termination "Game drawn by repetition"]

1. e4 {[%clk 0:02:55.3]} 1... g6 {[%clk 0:03:00.9]} 2. d4 {[%clk 0:02:54.1]}
2... Bg7 {[%clk 0:03:00.9]} 3. Nf3 {[%clk 0:02:53.4]} 3... c6 {[%clk 0:03:01.3]}
4. c3 {[%clk 0:02:48.4]} 4... d5 {[%clk 0:03:01.6]} 5. Nbd2 {[%clk 0:02:47.8]}
5... dxe4 {[%clk 0:03:02.5]} 6. Nxe4 {[%clk 0:02:47.5]} 6... Nf6 {[%clk
0:03:03.4]} 7. Bd3 {[%clk 0:02:41.3]} 7... Nxe4 {[%clk 0:03:02]} 8. Bxe4 {[%clk
0:02:40.9]} 8... O-O {[%clk 0:03:02.9]} 9. O-O {[%clk 0:02:40.1]} 9... Nd7
{[%clk 0:03:03.5]} 10. Bg5 {[%clk 0:02:11.4]} 10... Qb6 {[%clk 0:02:45.9]} 11.
Qb3 {[%clk 0:02:04.2]} 11... e5 {[%clk 0:02:40.2]} 12. dxe5 {[%clk 0:01:14.7]}
12... Nxe5 {[%clk 0:02:35.7]} 13. Nxe5 {[%clk 0:01:03.7]} 13... Bxe5 {[%clk
0:02:36.6]} 14. Rfe1 {[%clk 0:00:51.1]} 14... Bg7 {[%clk 0:02:24.1]} 15. Rad1
{[%clk 0:00:43.6]} 15... Be6 {[%clk 0:02:20.3]} 16. Qa3 {[%clk 0:00:40.8]} 16...
Rfe8 {[%clk 0:02:13.9]} 17. h3 {[%clk 0:00:38.2]} 17... a5 {[%clk 0:01:59.2]}
18. Be3 {[%clk 0:00:36.7]} 18... Qc7 {[%clk 0:01:59.2]} 19. Bc5 {[%clk
0:00:28.1]} 19... Be5 {[%clk 0:01:49.7]} 20. Bf3 {[%clk 0:00:23.1]} 20... Rad8
{[%clk 0:01:27.6]} 21. Be3 {[%clk 0:00:20.2]} 21... Rxd1 {[%clk 0:01:21.2]} 22.
Rxd1 {[%clk 0:00:20.3]} 22... Rd8 {[%clk 0:01:21.9]} 23. Rxd8+ {[%clk 0:00:14]}
23... Qxd8 {[%clk 0:01:22.8]} 24. Qc5 {[%clk 0:00:13.6]} 24... Bf6 {[%clk
0:01:07.7]} 25. Qb6 {[%clk 0:00:09]} 25... Qxb6 {[%clk 0:01:07.3]} 26. Bxb6
{[%clk 0:00:08.7]} 26... Bxa2 {[%clk 0:01:03.5]} 27. Bxa5 {[%clk 0:00:08.8]}
27... Bg5 {[%clk 0:00:52.6]} 28. Bb6 {[%clk 0:00:08.5]} 28... Bc1 {[%clk
0:00:51.2]} 29. b4 {[%clk 0:00:08.8]} 29... Bd2 {[%clk 0:00:41.7]} 30. Bd4
{[%clk 0:00:09.2]} 30... Kf8 {[%clk 0:00:32.4]} 31. b5 {[%clk 0:00:08.7]} 31...
cxb5 {[%clk 0:00:29.7]} 32. Bxb7 {[%clk 0:00:08.6]} 32... Bc4 {[%clk 0:00:23.2]}
33. g4 {[%clk 0:00:08.7]} 33... Ke7 {[%clk 0:00:22.6]} 34. Bc5+ {[%clk
0:00:07.9]} 34... Ke6 {[%clk 0:00:19.7]} 35. Bb4 {[%clk 0:00:07.6]} 35... Bd5
{[%clk 0:00:15.7]} 36. Bc8+ {[%clk 0:00:07.3]} 36... Kf6 {[%clk 0:00:14]} 37.
Kh2 {[%clk 0:00:06.9]} 37... h6 {[%clk 0:00:14.2]} 38. Kg3 {[%clk 0:00:06.4]}
38... g5 {[%clk 0:00:14.8]} 39. f3 {[%clk 0:00:06.8]} 39... Bf4+ {[%clk
0:00:14.3]} 40. Kf2 {[%clk 0:00:06.8]} 40... Ke5 {[%clk 0:00:14.8]} 41. Bc5
{[%clk 0:00:06]} 41... Kf6 {[%clk 0:00:11.2]} 42. Bd4+ {[%clk 0:00:06.1]} 42...
Be5 {[%clk 0:00:11.1]} 43. Bxe5+ {[%clk 0:00:06.1]} 43... Kxe5 {[%clk 0:00:12]}
44. Ke3 {[%clk 0:00:06.5]} 44... Bc4 {[%clk 0:00:10]} 45. Bd7 {[%clk 0:00:06.4]}
45... f6 {[%clk 0:00:07.3]} 46. Be8 {[%clk 0:00:05.9]} 46... Bf1 {[%clk
0:00:07.1]} 47. Bd7 {[%clk 0:00:05.2]} 47... Bc4 {[%clk 0:00:06.9]} 48. Be8
{[%clk 0:00:05.3]} 48... Bf1 {[%clk 0:00:07.1]} 49. Kf2 {[%clk 0:00:04.9]} 49...
Bc4 {[%clk 0:00:07.7]} 50. Ke3 {[%clk 0:00:05.5]} 1/2-1/2

[Event "Early-Titled-Tuesday-Blitz-March-26-2024"]
[Site "Chess.com"]
[Date "2024.03.26"]
[Round "3"]
[White "ContrVersia"]
[Black "Coach_Istvanovszki"]
[Result "1-0"]
[WhiteElo "2915"]
[BlackElo "2525"]
[TimeControl "180+1"]
[EndTime "8:28:44 PDT"]
[Termination "ContrVersia won by checkmate"]

1. Nf3 {[%clk 0:03:00.9]} 1... c5 {[%clk 0:02:58.5]} 2. e4 {[%clk 0:03:00.8]}
2... d6 {[%clk 0:02:58.3]} 3. d4 {[%clk 0:03:00.9]} 3... cxd4 {[%clk 0:02:59.2]}
4. Nxd4 {[%clk 0:03:01.7]} 4... Nf6 {[%clk 0:02:59.6]} 5. Nc3 {[%clk 0:03:02.3]}
5... g6 {[%clk 0:03:00.3]} 6. Be3 {[%clk 0:02:59.9]} 6... Nc6 {[%clk 0:03:00.5]}
7. f3 {[%clk 0:02:58.9]} 7... h5 {[%clk 0:03:00.9]} 8. Bc4 {[%clk 0:02:59]} 8...
Bd7 {[%clk 0:03:00.4]} 9. O-O {[%clk 0:02:55]} 9... Bg7 {[%clk 0:02:58.5]} 10.
Qd2 {[%clk 0:02:54.4]} 10... O-O {[%clk 0:02:53.3]} 11. Rad1 {[%clk 0:02:51.5]}
11... a6 {[%clk 0:02:48.1]} 12. Bb3 {[%clk 0:02:49.5]} 12... Rc8 {[%clk
0:02:43.4]} 13. Kh1 {[%clk 0:02:41.7]} 13... b5 {[%clk 0:02:42]} 14. Bh6 {[%clk
0:02:40.5]} 14... Ne5 {[%clk 0:02:06.9]} 15. Bxg7 {[%clk 0:02:32.3]} 15... Kxg7
{[%clk 0:02:07.8]} 16. f4 {[%clk 0:02:32.8]} 16... Nc4 {[%clk 0:02:00.3]} 17.
Bxc4 {[%clk 0:02:32.6]} 17... Rxc4 {[%clk 0:02:01.2]} 18. e5 {[%clk 0:02:32.8]}
18... Ng4 {[%clk 0:01:53.7]} 19. Rfe1 {[%clk 0:02:22.9]} 19... b4 {[%clk
0:01:24.4]} 20. Nd5 {[%clk 0:02:19.4]} 20... e6 {[%clk 0:01:21.6]} 21. Ne3
{[%clk 0:02:14.3]} 21... Rxd4 {[%clk 0:01:08.4]} 22. Qxd4 {[%clk 0:02:10.4]}
22... d5 {[%clk 0:01:00.3]} 23. Nxd5 {[%clk 0:01:53.8]} 23... Qh4 {[%clk
0:00:55.8]} 24. h3 {[%clk 0:01:46.8]} 24... Bc6 {[%clk 0:00:56]} 25. Kg1 {[%clk
0:01:37.1]} 25... Bxd5 {[%clk 0:00:52.9]} 26. hxg4 {[%clk 0:01:37.4]} 26... hxg4
{[%clk 0:00:53.4]} 27. Qe3 {[%clk 0:01:01.4]} 27... g3 {[%clk 0:00:46.9]} 28.
Rxd5 {[%clk 0:01:01.2]} 28... Qh2+ {[%clk 0:00:45.8]} 29. Kf1 {[%clk 0:01:01.1]}
29... exd5 {[%clk 0:00:43.4]} 30. Qf3 {[%clk 0:00:58]} 30... Rc8 {[%clk
0:00:40.9]} 31. Qd3 {[%clk 0:00:24]} 31... Qh1+ {[%clk 0:00:37.7]} 32. Ke2
{[%clk 0:00:24.4]} 32... Qxg2+ {[%clk 0:00:38.4]} 33. Kd1 {[%clk 0:00:24.9]}
33... Qf2 {[%clk 0:00:32.9]} 34. Qd2 {[%clk 0:00:19]} 34... Qf3+ {[%clk
0:00:29.5]} 35. Kc1 {[%clk 0:00:19.4]} 35... b3 {[%clk 0:00:21.3]} 36. axb3
{[%clk 0:00:18.3]} 36... Qxb3 {[%clk 0:00:22]} 37. f5 {[%clk 0:00:13.8]} 37...
Qa2 {[%clk 0:00:18.2]} 38. Qd4 {[%clk 0:00:13]} 38... Qa1+ {[%clk 0:00:16.1]}
39. Kd2 {[%clk 0:00:13.1]} 39... Rxc2+ {[%clk 0:00:16.9]} 40. Kxc2 {[%clk
0:00:12.5]} 40... Qxe1 {[%clk 0:00:17.6]} 41. e6+ {[%clk 0:00:13.1]} 41... Kf8
{[%clk 0:00:17.8]} 42. Qc5+ {[%clk 0:00:09.1]} 42... Kg7 {[%clk 0:00:17.6]} 43.
Qd4+ {[%clk 0:00:09.4]} 43... Kf8 {[%clk 0:00:17.3]} 44. Qf6 {[%clk 0:00:08.7]}
44... Qe4+ {[%clk 0:00:16.4]} 45. Kb3 {[%clk 0:00:07.8]} 45... Qxf5 {[%clk
0:00:17]} 46. Qd8+ {[%clk 0:00:06.9]} 46... Kg7 {[%clk 0:00:17.7]} 47. e7 {[%clk
0:00:07.5]} 47... Qd3+ {[%clk 0:00:18.4]} 48. Ka2 {[%clk 0:00:07.5]} 48... Qc4+
{[%clk 0:00:18.6]} 49. Ka3 {[%clk 0:00:08]} 49... Qd3+ {[%clk 0:00:18.3]} 50.
Ka2 {[%clk 0:00:08.4]} 50... Qc4+ {[%clk 0:00:18.7]} 51. Ka3 {[%clk 0:00:07.9]}
51... Qd3+ {[%clk 0:00:19.1]} 52. b3 {[%clk 0:00:08.6]} 52... g2 {[%clk
0:00:16.8]} 53. e8=Q {[%clk 0:00:08.7]} 53... Kh6 {[%clk 0:00:15.6]} 54. Qh8#
{[%clk 0:00:08.5]} 1-0

[Event "Early-Titled-Tuesday-Blitz-March-26-2024"]
[Site "Chess.com"]
[Date "2024.03.26"]
[Round "3"]
[White "Taran2004"]
[Black "SlavenPastar"]
[Result "0-1"]
[WhiteElo "2404"]
[BlackElo "2610"]
[TimeControl "180+1"]
[EndTime "8:28:47 PDT"]
[Termination "SlavenPastar won by resignation"]

1. e4 {[%clk 0:03:00.9]} 1... b6 {[%clk 0:03:00.2]} 2. d4 {[%clk 0:03:00.6]}
2... Bb7 {[%clk 0:03:00.7]} 3. Nc3 {[%clk 0:03:00.4]} 3... e6 {[%clk 0:02:59.8]}
4. Nf3 {[%clk 0:02:58.3]} 4... Bb4 {[%clk 0:02:59.5]} 5. Bd3 {[%clk 0:02:55.5]}
5... Nf6 {[%clk 0:02:59.3]} 6. e5 {[%clk 0:02:55.8]} 6... Ne4 {[%clk 0:02:58.9]}
7. Bd2 {[%clk 0:02:56.2]} 7... Nxd2 {[%clk 0:02:57.1]} 8. Qxd2 {[%clk
0:02:57.1]} 8... Bxf3 {[%clk 0:02:55.4]} 9. gxf3 {[%clk 0:02:58]} 9... Qh4
{[%clk 0:02:52.4]} 10. Be4 {[%clk 0:02:53]} 10... Nc6 {[%clk 0:02:50.6]} 11. a3
{[%clk 0:02:48.5]} 11... Bxc3 {[%clk 0:02:50.2]} 12. Qxc3 {[%clk 0:02:49.3]}
12... O-O-O {[%clk 0:02:50.1]} 13. O-O-O {[%clk 0:02:46.1]} 13... Kb8 {[%clk
0:02:41.4]} 14. Bxc6 {[%clk 0:02:01.5]} 14... dxc6 {[%clk 0:02:41.1]} 15. Qxc6
{[%clk 0:02:02.4]} 15... Rxd4 {[%clk 0:02:14]} 16. c3 {[%clk 0:01:55.4]} 16...
Qf4+ {[%clk 0:02:02.7]} 17. Kc2 {[%clk 0:01:48.8]} 17... Rxd1 {[%clk 0:01:51.1]}
18. Rxd1 {[%clk 0:01:49.7]} 18... Qxe5 {[%clk 0:01:49.4]} 19. Rd7 {[%clk
0:01:47.9]} 19... Qf5+ {[%clk 0:01:46.5]} 20. Kb3 {[%clk 0:01:43.2]} 20... Rc8
{[%clk 0:01:42.9]} 21. a4 {[%clk 0:01:40.2]} 21... h5 {[%clk 0:01:37.8]} 22. Ka2
{[%clk 0:01:30.5]} 22... a5 {[%clk 0:01:32.6]} 23. Qc4 {[%clk 0:01:11.2]} 23...
Qxf3 {[%clk 0:01:22.4]} 24. Qd4 {[%clk 0:01:06]} 24... g5 {[%clk 0:01:11.8]} 25.
Qe5 {[%clk 0:01:02.4]} 25... Qc6 {[%clk 0:00:45.9]} 26. Rxf7 {[%clk 0:00:57.6]}
26... Qxa4+ {[%clk 0:00:44.8]} 27. Kb1 {[%clk 0:00:58.3]} 27... Qd1+ {[%clk
0:00:33]} 28. Ka2 {[%clk 0:00:57.5]} 28... Qd5+ {[%clk 0:00:21.2]} 29. Qxd5
{[%clk 0:00:56.7]} 29... exd5 {[%clk 0:00:22.1]} 30. Rf5 {[%clk 0:00:56.6]}
30... Rg8 {[%clk 0:00:22.4]} 31. Rxd5 {[%clk 0:00:56.5]} 31... h4 {[%clk
0:00:22.4]} 32. Rd7 {[%clk 0:00:54.4]} 32... Rf8 {[%clk 0:00:20.1]} 33. Rd2
{[%clk 0:00:54]} 33... Rf4 {[%clk 0:00:19]} 34. Kb3 {[%clk 0:00:53.2]} 34... g4
{[%clk 0:00:18.8]} 35. Kc2 {[%clk 0:00:52.2]} 35... h3 {[%clk 0:00:19.2]} 36.
Kd3 {[%clk 0:00:51.1]} 36... Kb7 {[%clk 0:00:19.7]} 37. Ke3 {[%clk 0:00:51.1]}
37... Rf3+ {[%clk 0:00:20.3]} 38. Ke2 {[%clk 0:00:50.7]} 38... Rf4 {[%clk
0:00:18.8]} 39. Ke3 {[%clk 0:00:50.8]} 39... Rc4 {[%clk 0:00:18.6]} 40. Rd7
{[%clk 0:00:49.8]} 40... b5 {[%clk 0:00:18.5]} 41. Rf7 {[%clk 0:00:50]} 41... b4
{[%clk 0:00:18.1]} 42. Kd3 {[%clk 0:00:49.5]} 42... Rc6 {[%clk 0:00:16.5]} 43.
cxb4 {[%clk 0:00:47.2]} 43... axb4 {[%clk 0:00:17.1]} 44. Rf4 {[%clk 0:00:47.8]}
44... b3 {[%clk 0:00:17.5]} 45. Rxg4 {[%clk 0:00:46.6]} 45... Rc2 {[%clk
0:00:16.5]} 46. Rb4+ {[%clk 0:00:46.4]} 46... Kc8 {[%clk 0:00:14.9]} 47. Rxb3
{[%clk 0:00:25.3]} 47... Rxf2 {[%clk 0:00:15]} 48. Ke4 {[%clk 0:00:20.6]} 48...
Rxh2 {[%clk 0:00:15.9]} 49. Kd5 {[%clk 0:00:21.2]} 49... Kd7 {[%clk 0:00:15.1]}
50. Rg3 {[%clk 0:00:20.3]} 50... Rh1 {[%clk 0:00:13]} 51. Rg7+ {[%clk
0:00:19.1]} 51... Kc8 {[%clk 0:00:13.3]} 52. Kc6 {[%clk 0:00:18.2]} 52... Rc1+
{[%clk 0:00:12.5]} 53. Kd5 {[%clk 0:00:17.7]} 53... h2 {[%clk 0:00:12.7]} 54.
Rg8+ {[%clk 0:00:17.3]} 54... Kb7 {[%clk 0:00:11.3]} 55. Rh8 {[%clk 0:00:18.2]}
55... h1=Q+ {[%clk 0:00:11.7]} 56. Rxh1 {[%clk 0:00:19.1]} 56... Rxh1 {[%clk
0:00:12]} 57. b4 {[%clk 0:00:20]} 0-1

[Event "Early-Titled-Tuesday-Blitz-March-26-2024"]
[Site "Chess.com"]
[Date "2024.03.26"]
[Round "3"]
[White "Yaacovn"]
[Black "DreamsAreFake"]
[Result "0-1"]
[WhiteElo "2900"]
[BlackElo "2745"]
[TimeControl "180+1"]
[EndTime "8:28:51 PDT"]
[Termination "DreamsAreFake won on time"]

1. d4 {[%clk 0:03:00.9]} 1... Nf6 {[%clk 0:03:00]} 2. e3 {[%clk 0:02:56.3]} 2...
b6 {[%clk 0:03:00.3]} 3. Nf3 {[%clk 0:02:55]} 3... Bb7 {[%clk 0:03:00.5]} 4. Be2
{[%clk 0:02:55.2]} 4... g6 {[%clk 0:03:00.9]} 5. O-O {[%clk 0:02:55.3]} 5... Bg7
{[%clk 0:03:01.7]} 6. b3 {[%clk 0:02:55.3]} 6... O-O {[%clk 0:03:02.1]} 7. Bb2
{[%clk 0:02:52.3]} 7... d6 {[%clk 0:03:00.9]} 8. c4 {[%clk 0:02:52.2]} 8... Nbd7
{[%clk 0:03:00.2]} 9. Qc2 {[%clk 0:02:49.2]} 9... Re8 {[%clk 0:02:57.9]} 10. Rd1
{[%clk 0:02:28.7]} 10... e6 {[%clk 0:02:25.2]} 11. Nc3 {[%clk 0:02:20.6]} 11...
Qe7 {[%clk 0:02:24.8]} 12. Rac1 {[%clk 0:02:18.4]} 12... c5 {[%clk 0:02:18.4]}
13. Nb5 {[%clk 0:02:16.2]} 13... Red8 {[%clk 0:02:09.1]} 14. dxc5 {[%clk
0:01:59.4]} 14... Nxc5 {[%clk 0:02:08.1]} 15. Qb1 {[%clk 0:01:56.3]} 15... a6
{[%clk 0:02:05.1]} 16. Nc3 {[%clk 0:01:56.2]} 16... d5 {[%clk 0:02:01.8]} 17.
cxd5 {[%clk 0:01:50.2]} 17... Nxd5 {[%clk 0:02:01.2]} 18. Nxd5 {[%clk
0:01:49.9]} 18... Bxd5 {[%clk 0:02:01.1]} 19. Bxg7 {[%clk 0:01:50]} 19... Kxg7
{[%clk 0:02:01.7]} 20. h3 {[%clk 0:01:39.3]} 20... Bxf3 {[%clk 0:01:51.2]} 21.
Bxf3 {[%clk 0:01:39]} 21... Rxd1+ {[%clk 0:01:48.9]} 22. Rxd1 {[%clk 0:01:37.3]}
22... Rd8 {[%clk 0:01:49.6]} 23. Qb2+ {[%clk 0:01:36.9]} 23... f6 {[%clk
0:01:47.5]} 24. Rd4 {[%clk 0:01:33.8]} 24... e5 {[%clk 0:01:46]} 25. Rd2 {[%clk
0:01:33]} 25... Rxd2 {[%clk 0:01:40.3]} 26. Qxd2 {[%clk 0:01:33.9]} 26... Qd7
{[%clk 0:01:40.9]} 27. Qc3 {[%clk 0:01:31]} 27... a5 {[%clk 0:01:34.1]} 28. Be2
{[%clk 0:01:27.1]} 28... Qd5 {[%clk 0:01:29.1]} 29. h4 {[%clk 0:01:18.1]} 29...
Qe4 {[%clk 0:01:28.1]} 30. g3 {[%clk 0:00:57.7]} 30... Qb1+ {[%clk 0:01:27.3]}
31. Kg2 {[%clk 0:00:57.4]} 31... Qxa2 {[%clk 0:01:26.1]} 32. Bc4 {[%clk
0:00:56.4]} 32... Qb1 {[%clk 0:01:24.1]} 33. Qd2 {[%clk 0:00:55.1]} 33... Qe4+
{[%clk 0:01:06.9]} 34. Kh2 {[%clk 0:00:53.3]} 34... Qf5 {[%clk 0:00:53.9]} 35.
Kg1 {[%clk 0:00:48.5]} 35... Qd7 {[%clk 0:00:42.7]} 36. Qc2 {[%clk 0:00:36]}
36... Qd6 {[%clk 0:00:42.3]} 37. Qe2 {[%clk 0:00:35.2]} 37... Ne4 {[%clk
0:00:39.4]} 38. Qf3 {[%clk 0:00:33.2]} 38... f5 {[%clk 0:00:39.5]} 39. Kg2
{[%clk 0:00:31.9]} 39... Qc7 {[%clk 0:00:32.7]} 40. Qd1 {[%clk 0:00:25.9]} 40...
Nf6 {[%clk 0:00:29.1]} 41. Qa1 {[%clk 0:00:21.9]} 41... Qd6 {[%clk 0:00:27.7]}
42. Qa4 {[%clk 0:00:20.2]} 42... Ng4 {[%clk 0:00:21.2]} 43. Qe8 {[%clk
0:00:17.2]} 43... Nf6 {[%clk 0:00:20.4]} 44. Qf7+ {[%clk 0:00:16.7]} 44... Kh6
{[%clk 0:00:18]} 45. Be6 {[%clk 0:00:16.2]} 45... Qd8 {[%clk 0:00:17]} 46. f3
{[%clk 0:00:10.8]} 46... b5 {[%clk 0:00:13]} 47. g4 {[%clk 0:00:09.2]} 47...
fxg4 {[%clk 0:00:13.4]} 48. fxg4 {[%clk 0:00:06.4]} 48... Qd2+ {[%clk
0:00:13.2]} 0-1